fUSD/lending_fUSD_20240428
["ID","MTS","AMOUNT","RATE_DAILY","PERIOD"]
[324814474,1714341064573,-657.62,0.00015068,2]
[324814475,1714341064582,-500.0,0.00015068,2]
[324814476,1714341064592,-529.3,0.00015068,2]
[324814477,1714341064601,-606.75,0.00015068,2]
[324814478,1714341064610,-500.0,0.00015068,2]
[324814479,1714341064619,-863.33,0.00015068,2]
[324814480,1714341064628,-1529.21,0.00015068,2]
[324814481,1714341064637,-518.89,0.00015068,2]
[324814482,1714341064647,-822.56,0.00015068,2]
[324814483,1714341064656,-4168.98,0.00015068,2]
[324814484,1714341064666,-671.78,0.00015068,2]
[324814485,1714341064676,-500.0,0.00015068,2]
[324814486,1714341064685,-1616.93,0.00015068,2]
[324814487,1714341064695,-721.38,0.00015068,2]
[324814488,1714341064704,-1027.03,0.00015068,2]
[324814489,1714341064714,-243.39,0.00015068,2]
[324814490,1714341064723,-7823.72,0.00015068,2]
[324814491,1714341064734,-547.0,0.00015068,2]
[324814492,1714341064744,-500.0,0.00015068,2]
[324814493,1714341064753,-500.0,0.00015068,2]
[324814494,1714341064763,-739.98,0.00015068,2]
[324814495,1714341064772,-500.0,0.00015068,2]
[324814496,1714341064781,-2815.22,0.00015068,2]
[324814497,1714341064791,-1064.93,0.00015068,2]
[324814498,1714341064801,-500.0,0.00015068,2]
[324814499,1714341064811,-765.24,0.00015068,2]
[324814500,1714341064821,-490.4,0.00015068,2]
[324814501,1714341064830,-412.12,0.00015068,2]
[324814502,1714341064839,-904.55,0.00015068,2]
[324814503,1714341064849,-500.0,0.00015068,2]
[324814504,1714341064860,-596.75,0.00015068,2]
[324814505,1714341064870,-1292.15,0.00015068,2]
[324814506,1714341064881,-500.0,0.00015068,2]
[324814507,1714341064891,-17248.02,0.00015068,2]
[324814508,1714341064901,-1054.15,0.00015068,2]
[324814509,1714341064910,-155.53,0.00015068,2]
[324814510,1714341064920,-517.0,0.00015069,2]
[324814511,1714341064929,-400.0,0.00015335,2]
[324814512,1714341064939,-453.94308511,0.0001534,2]
[324814513,1714341064948,-500.0,0.0001534,2]
[324814514,1714341064958,-500.0,0.0001534,2]
[324814515,1714341064967,-633.3,0.0001534,2]
[324814516,1714341064978,-500.0,0.0001534,2]
[324814517,1714341064988,-500.0,0.0001534,2]
[324814518,1714341064997,-2064.16,0.00015341,2]
[324814519,1714341065006,-843.47,0.00015341,2]
[324814520,1714341065015,-1166.48,0.00015341,2]
[324814521,1714341065024,-592.13,0.00015341,2]
[324814522,1714341065034,-2311.26,0.00015341,2]
[324814523,1714341065044,-2248.85,0.00015341,2]
[324814524,1714341065054,-500.0,0.00015342,2]
[324814525,1714341065064,-311.0960115,0.00015342,2]
[324814526,1714341065074,-743.26,0.00015342,2]
[324814527,1714341065084,-1035.98,0.00015342,2]
[324814528,1714341065094,-583.16,0.00015342,2]
[324814529,1714341065106,-658.41,0.00015342,2]
[324814530,1714341065116,-1038.44,0.00015342,2]
[324814531,1714341065126,-751.72,0.00015342,2]
[324814532,1714341065136,-510.93,0.00015342,2]
[324814533,1714341065147,-500.0,0.00015342,2]
[324814534,1714341065156,-500.0,0.00015342,2]
[324814535,1714341065166,-612.97,0.00015342,2]
[324814536,1714341065176,-500.0,0.00015342,2]
[324814537,1714341065186,-500.0,0.00015342,2]
[324814538,1714341065196,-354.19,0.00015342,2]
[324814539,1714341065206,-539.7,0.00015342,2]
[324814540,1714341065216,-391.73514251,0.00015342,2]
[324814541,1714341065227,-1043.37,0.00015342,2]
[324814542,1714341065237,-500.0,0.00015342,2]
[324814543,1714341065247,-666.72,0.00015342,2]
[324814544,1714341065257,-500.0,0.00015342,2]
[324814545,1714341065267,-685.26,0.00015342,2]
[324814546,1714341065277,-500.0,0.00015342,2]
[324814547,1714341065287,-1020.32,0.00015342,2]
[324814548,1714341065296,-502.9,0.00015342,2]
[324814549,1714341065306,-657.62,0.00015342,2]
[324814550,1714341065316,-579.35460828,0.00015342,2]
[324814551,1714341065326,-529.3,0.00015342,2]
[324814552,1714341065336,-606.75,0.00015342,2]
[324814553,1714341065346,-500.0,0.00015342,2]
[324814554,1714341065356,-863.33,0.00015342,2]
[324814555,1714341065365,-1529.21,0.00015342,2]
[324814556,1714341065376,-518.89,0.00015342,2]
[324814557,1714341065385,-822.56,0.00015342,2]
[324814558,1714341065395,-4168.98,0.00015342,2]
[324814559,1714341065405,-671.78,0.00015342,2]
[324814560,1714341065415,-500.0,0.00015342,2]
[324814561,1714341065426,-1616.93,0.00015342,2]
[324814562,1714341065435,-721.38,0.00015342,2]
[324814563,1714341065445,-1027.03,0.00015342,2]
[324814564,1714341065455,-7823.72,0.00015342,2]
[324814565,1714341065465,-547.0,0.00015342,2]
[324814566,1714341065476,-500.0,0.00015342,2]
[324814567,1714341065486,-500.0,0.00015342,2]
[324814568,1714341065497,-387.37,0.00015342,2]
[324814569,1714341065507,-2815.22,0.00015342,2]
[324814570,1714341065517,-1064.93,0.00015342,2]
[324814571,1714341065527,-500.0,0.00015342,2]
[324814572,1714341065537,-765.24,0.00015342,2]
[324814573,1714341065547,-904.55,0.00015342,2]
[324814574,1714341065557,-310.51,0.00015342,2]
[324814575,1714341065567,-596.75,0.00015342,2]
[324814576,1714341065577,-1292.15,0.00015342,2]
[324814577,1714341065587,-500.0,0.00015342,2]
[324814578,1714341065598,-17248.02,0.00015342,2]
[324814579,1714341065607,-1054.15,0.00015342,2]
[324814580,1714341065617,-314.44,0.00015412,2]
[324814581,1714341065628,-261.66511868,0.00015566,2]
[324814582,1714341065638,-500.0,0.00015614,2]
[324814583,1714341065647,-500.0,0.00015614,2]
[324814584,1714341065657,-500.0,0.00015614,2]
[324814585,1714341065667,-500.0,0.00015614,2]
[324814586,1714341065677,-2064.16,0.00015615,2]
[324814587,1714341065687,-843.47,0.00015615,2]
[324814588,1714341065697,-1166.48,0.00015615,2]
[324814589,1714341065707,-592.13,0.00015615,2]
[324814590,1714341065716,-2311.26,0.00015615,2]
[324814591,1714341065727,-2248.85,0.00015615,2]
[324814592,1714341065736,-500.0,0.00015615,2]
[324814593,1714341065746,-544.40596739,0.00015616,2]
[324814594,1714341065756,-743.26,0.00015616,2]
[324814595,1714341065766,-1035.98,0.00015616,2]
[324814596,1714341065775,-583.16,0.00015616,2]
[324814597,1714341065785,-658.41,0.00015616,2]
[324814598,1714341065795,-1038.44,0.00015616,2]
[324814599,1714341065805,-751.72,0.00015616,2]
[324814600,1714341065814,-510.93,0.00015616,2]
[324814601,1714341065824,-500.0,0.00015616,2]
[324814602,1714341065834,-500.0,0.00015616,2]
[324814603,1714341065844,-612.97,0.00015616,2]
[324814604,1714341065853,-500.0,0.00015616,2]
[324814605,1714341065863,-624.7,0.00015616,2]
[324814606,1714341065873,-539.7,0.00015616,2]
[324814607,1714341065882,-1043.37,0.00015616,2]
[324814608,1714341065892,-403.97,0.00015616,2]
[324814609,1714341065902,-666.72,0.00015616,2]
[324814610,1714341065911,-500.0,0.00015616,2]
[324814611,1714341065921,-685.26,0.00015616,2]
[324814612,1714341065931,-250.86025915,0.00015616,2]
[324814613,1714341065940,-1020.32,0.00015616,2]
[324814614,1714341065950,-502.9,0.00015616,2]
[324814615,1714341065961,-657.62,0.00015616,2]
[324814616,1714341065971,-529.3,0.00015616,2]
[324814617,1714341065981,-606.75,0.00015616,2]
[324814618,1714341065991,-500.0,0.00015616,2]
[324814619,1714341066001,-863.33,0.00015616,2]
[324814620,1714341066011,-1529.21,0.00015616,2]
[324814621,1714341066021,-518.89,0.00015616,2]
[324814622,1714341066031,-822.56,0.00015616,2]
[324814623,1714341066041,-4168.98,0.00015616,2]
[324814624,1714341066051,-671.78,0.00015616,2]
[324814625,1714341066061,-500.0,0.00015616,2]
[324814626,1714341066071,-1616.93,0.00015616,2]
[324814627,1714341066081,-721.38,0.00015616,2]
[324814628,1714341066091,-1027.03,0.00015616,2]
[324814629,1714341066103,-7823.72,0.00015616,2]
[324814630,1714341066115,-547.0,0.00015616,2]
[324814631,1714341066125,-500.0,0.00015616,2]
[324814632,1714341066135,-500.0,0.00015616,2]
[324814633,1714341066147,-2815.22,0.00015616,2]
[324814634,1714341066157,-1064.93,0.00015616,2]
[324814635,1714341066167,-500.0,0.00015616,2]
[324814636,1714341066177,-765.24,0.00015616,2]
[324814637,1714341066187,-904.55,0.00015616,2]
[324814638,1714341066197,-596.75,0.00015616,2]
[324814639,1714341066208,-1292.15,0.00015616,2]
[324814640,1714341066218,-500.0,0.00015616,2]
[324814641,1714341066233,-17248.02,0.00015616,2]
[324814642,1714341066243,-1054.15,0.00015616,2]
[324814643,1714341066253,-518.0,0.00015617,2]
[324814644,1714341066264,-167.0,0.00015831,2]
[324814645,1714341066273,-500.0,0.00015888,2]
[324814646,1714341066284,-559.24,0.00015888,2]
[324814647,1714341066294,-500.0,0.00015888,2]
[324814648,1714341066307,-500.0,0.00015888,2]
[324814649,1714341066317,-2064.16,0.00015889,2]
[324814650,1714341066328,-843.47,0.00015889,2]
[324814651,1714341066338,-1166.48,0.00015889,2]
[324814652,1714341066348,-592.13,0.00015889,2]
[324814653,1714341066359,-2311.26,0.00015889,2]
[324814654,1714341066370,-2248.85,0.00015889,2]
[324814655,1714341066380,-743.26,0.0001589,2]
[324814656,1714341066391,-1035.98,0.0001589,2]
[324814657,1714341066401,-583.16,0.0001589,2]
[324814658,1714341066412,-658.41,0.0001589,2]
[324814659,1714341066422,-1038.44,0.0001589,2]
[324814660,1714341066433,-751.72,0.0001589,2]
[324814661,1714341066443,-510.93,0.0001589,2]
[324814662,1714341066453,-500.0,0.0001589,2]
[324814663,1714341066463,-500.0,0.0001589,2]
[324814664,1714341066474,-612.97,0.0001589,2]
[324814665,1714341066483,-519.53477058,0.0001589,2]
[324814666,1714341066494,-539.7,0.0001589,2]
[324814667,1714341066504,-1043.37,0.0001589,2]
[324814668,1714341066514,-666.72,0.0001589,2]
[324814669,1714341066525,-500.0,0.0001589,2]
[324814670,1714341066535,-685.26,0.0001589,2]
[324814671,1714341066545,-1020.32,0.0001589,2]
[324814672,1714341066555,-502.9,0.0001589,2]
[324814673,1714341066565,-657.62,0.0001589,2]
[324814674,1714341066576,-529.3,0.0001589,2]
[324814675,1714341066586,-606.75,0.0001589,2]
[324814676,1714341066596,-500.0,0.0001589,2]
[324814677,1714341066606,-863.33,0.0001589,2]
[324814678,1714341066617,-1529.21,0.0001589,2]
[324814679,1714341066627,-518.89,0.0001589,2]
[324814680,1714341066637,-822.56,0.0001589,2]
[324814681,1714341066649,-4168.98,0.0001589,2]
[324814682,1714341066659,-671.78,0.0001589,2]
[324814683,1714341066670,-500.0,0.0001589,2]
[324814684,1714341066680,-1616.93,0.0001589,2]
[324814685,1714341066689,-721.38,0.0001589,2]
[324814686,1714341066700,-1027.03,0.0001589,2]
[324814687,1714341066710,-7823.72,0.0001589,2]
[324814688,1714341066719,-547.0,0.0001589,2]
[324814689,1714341066731,-235.24,0.0001589,2]
[324814690,1714341066741,-500.0,0.0001589,2]
[324814691,1714341066752,-2815.22,0.0001589,2]
[324814692,1714341066762,-1064.93,0.0001589,2]
[324814693,1714341066772,-566.83,0.0001589,2]
[324814694,1714341066782,-765.24,0.0001589,2]
[324814695,1714341066793,-904.55,0.0001589,2]
[324814696,1714341066804,-596.75,0.0001589,2]
[324814697,1714341066814,-1292.15,0.0001589,2]
[324814698,1714341066824,-500.0,0.0001589,2]
[324814699,1714341066834,-17248.02,0.0001589,2]
[324814700,1714341067002,-1054.15,0.0001589,2]
[324814701,1714341067014,-157.042906,0.00015948,4]
[324814702,1714341067026,-1000.0,0.00015993,2]
[324814703,1714341067038,-157.042906,0.00015998,2]
[324814704,1714341067054,-192.27623579,0.00016107,2]
[324814705,1714341067068,-500.0,0.00016162,2]
[324814706,1714341067079,-209.5,0.00016162,2]
[324814707,1714341067089,-285.04886077,0.00016162,2]
[324814708,1714341067100,-2000.0,0.00016163,2]
[324814709,1714341067114,-2064.16,0.00016163,2]
[324814710,1714341067125,-843.47,0.00016163,2]
[324814711,1714341067135,-1166.48,0.00016163,2]
[324814712,1714341067149,-592.13,0.00016163,2]
[324814713,1714341067158,-2311.26,0.00016163,2]
[324814714,1714341067168,-2248.85,0.00016163,2]
[324814715,1714341067179,-743.26,0.00016164,2]
[324814716,1714341067188,-1035.98,0.00016164,2]
[324814717,1714341067197,-583.16,0.00016164,2]
[324814718,1714341067208,-658.41,0.00016164,2]
[324814719,1714341067218,-1038.44,0.00016164,2]
[324814720,1714341067230,-751.72,0.00016164,2]
[324814721,1714341067239,-510.93,0.00016164,2]
[324814722,1714341067257,-500.0,0.00016164,2]
[324814723,1714341067267,-500.0,0.00016164,2]
[324814724,1714341067285,-612.97,0.00016164,2]
[324814725,1714341067296,-539.7,0.00016164,2]
[324814726,1714341067306,-1043.37,0.00016164,2]
[324814727,1714341067315,-666.72,0.00016164,2]
[324814728,1714341067325,-392.46,0.00016164,2]
[324814729,1714341067341,-685.26,0.00016164,2]
[324814730,1714341067353,-1020.32,0.00016164,2]
[324814731,1714341067363,-502.9,0.00016164,2]
[324814732,1714341067374,-657.62,0.00016164,2]
[324814733,1714341067383,-529.3,0.00016164,2]
[324814734,1714341067393,-606.75,0.00016164,2]
[324814735,1714341067404,-500.0,0.00016164,2]
[324814736,1714341067414,-863.33,0.00016164,2]
[324814737,1714341067424,-1529.21,0.00016164,2]
[324814738,1714341067434,-518.89,0.00016164,2]
[324814739,1714341067444,-822.56,0.00016164,2]
[324814740,1714341067454,-4168.98,0.00016164,2]
[324814741,1714341067463,-671.78,0.00016164,2]
[324814742,1714341067473,-500.0,0.00016164,2]
[324814743,1714341067482,-1616.93,0.00016164,2]
[324814744,1714341067492,-721.38,0.00016164,2]
[324814745,1714341067501,-1027.03,0.00016164,2]
[324814746,1714341067511,-7823.72,0.00016164,2]
[324814747,1714341067521,-547.0,0.00016164,2]
[324814748,1714341067531,-500.0,0.00016164,2]
[324814749,1714341067541,-739.98,0.00016164,2]
[324814750,1714341067550,-2815.22,0.00016164,2]
[324814751,1714341067559,-1064.93,0.00016164,2]
[324814752,1714341067569,-765.24,0.00016164,2]
[324814753,1714341067579,-904.55,0.00016164,2]
[324814754,1714341067588,-596.75,0.00016164,2]
[324814755,1714341067598,-1292.15,0.00016164,2]
[324814756,1714341067607,-500.0,0.00016164,2]
[324814757,1714341067617,-17248.02,0.00016164,2]
[324814758,1714341067626,-1054.15,0.00016164,2]
[324814759,1714341067635,-152.7094908,0.00016168,2]
[324814760,1714341067645,-493.39263262,0.00016216,2]
[324814761,1714341067655,-493.39263262,0.00016246,2]
[324814762,1714341067664,-261.66511868,0.00016288,2]
[324814763,1714341067673,-2895.15798985,0.00016337,2]
[324814764,1714341067683,-155.18853133,0.0001636,2]
[324814765,1714341067692,-200.0,0.00016365,2]
[324814766,1714341067704,-1000.0,0.00016365,2]
[324814767,1714341067713,-500.0,0.00016365,2]
[324814768,1714341067725,-200.0,0.00016365,2]
[324814769,1714341067734,-155.61572325,0.00016374,2]
[324814770,1714341067744,-155.18853133,0.00016382,2]
[324814771,1714341067753,-289.82,0.00016436,2]
[324814772,1714341067763,-2000.0,0.00016437,2]
[324814773,1714341067773,-2064.16,0.00016437,2]
[324814774,1714341067782,-843.47,0.00016437,2]
[324814775,1714341067792,-1166.48,0.00016437,2]
[324814776,1714341067801,-592.13,0.00016437,2]
[324814777,1714341067810,-2311.26,0.00016437,2]
[324814778,1714341067820,-2248.85,0.00016437,2]
[324814779,1714341067830,-743.26,0.00016438,2]
[324814780,1714341067840,-1035.98,0.00016438,2]
[324814781,1714341067849,-583.16,0.00016438,2]
[324814782,1714341067860,-658.41,0.00016438,2]
[324814783,1714341067870,-1038.44,0.00016438,2]
[324814784,1714341067879,-751.72,0.00016438,2]
[324814785,1714341067889,-510.93,0.00016438,2]
[324814786,1714341067899,-522.86,0.00016438,2]
[324814787,1714341067908,-500.0,0.00016438,2]
[324814788,1714341067918,-612.97,0.00016438,2]
[324814789,1714341067927,-539.7,0.00016438,2]
[324814790,1714341067937,-1043.37,0.00016438,2]
[324814791,1714341067947,-666.72,0.00016438,2]
[324814792,1714341067957,-685.26,0.00016438,2]
[324814793,1714341067967,-1020.32,0.00016438,2]
[324814794,1714341067979,-502.9,0.00016438,2]
[324814795,1714341067989,-657.62,0.00016438,2]
[324814796,1714341068000,-529.3,0.00016438,2]
[324814797,1714341068011,-606.75,0.00016438,2]
[324814798,1714341068021,-500.0,0.00016438,2]
[324814799,1714341068031,-863.33,0.00016438,2]
[324814800,1714341068042,-1529.21,0.00016438,2]
[324814801,1714341068052,-518.89,0.00016438,2]
[324814802,1714341068062,-822.56,0.00016438,2]
[324814803,1714341068072,-4168.98,0.00016438,2]
[324814804,1714341068083,-671.78,0.00016438,2]
[324814805,1714341068093,-293.09,0.00016438,2]
[324814806,1714341068108,-1616.93,0.00016438,2]
[324814807,1714341068118,-721.38,0.00016438,2]
[324814808,1714341068129,-1027.03,0.00016438,2]
[324814809,1714341068140,-7823.72,0.00016438,2]
[324814810,1714341068150,-547.0,0.00016438,2]
[324814811,1714341068160,-456.85,0.00016438,2]
[324814812,1714341068170,-2815.22,0.00016438,2]
[324814813,1714341068180,-1064.93,0.00016438,2]
[324814814,1714341068192,-765.24,0.00016438,2]
[324814815,1714341068202,-904.55,0.00016438,2]
[324814816,1714341068213,-596.75,0.00016438,2]
[324814817,1714341068224,-1292.15,0.00016438,2]
[324814818,1714341068234,-500.0,0.00016438,2]
[324814819,1714341068244,-17248.02,0.00016438,2]
[324814820,1714341068253,-1054.15,0.00016438,2]
[324814821,1714341068263,-155.53,0.00016438,2]
[324814822,1714341068273,-167.0,0.00016484,2]
[324814823,1714341068283,-155.75894428,0.00016487,2]
[324814824,1714341068292,-152.46922593,0.00016494,2]
[324814825,1714341068301,-493.39263262,0.00016497,2]
[324814826,1714341068311,-157.042906,0.00016498,4]
[324814827,1714341068321,-1224.205964,0.000165,2]
[324814828,1714341068331,-158.08680255,0.00016522,2]
[324814829,1714341068340,-150.0,0.00016533,2]
[324814830,1714341068349,-150.0,0.0001655,2]
[324814831,1714341068359,-192.27623579,0.00016555,2]
[324814832,1714341068368,-200.88129127,0.00016611,2]
[324814833,1714341068377,-152.7094908,0.00016628,2]
[324814834,1714341068387,-150.0,0.00016633,2]
[324814835,1714341068397,-178.36539837,0.00016636,2]
[324814836,1714341068406,-155.18853133,0.00016655,2]
[324814837,1714341068416,-153.53817219,0.00016705,2]
[324814838,1714341068426,-500.0,0.0001671,2]
[324814839,1714341068436,-2000.0,0.00016711,2]
[324814840,1714341068445,-2064.16,0.00016711,2]
[324814841,1714341068455,-843.47,0.00016711,2]
[324814842,1714341068464,-1166.48,0.00016711,2]
[324814843,1714341068474,-592.13,0.00016711,2]
[324814844,1714341068483,-2311.26,0.00016711,2]
[324814845,1714341068493,-2248.85,0.00016711,2]
[324814846,1714341068502,-743.26,0.00016712,2]
[324814847,1714341068511,-1035.98,0.00016712,2]
[324814848,1714341068520,-583.16,0.00016712,2]
[324814849,1714341068529,-658.41,0.00016712,2]
[324814850,1714341068539,-1038.44,0.00016712,2]
[324814851,1714341068548,-751.72,0.00016712,2]
[324814852,1714341068558,-510.93,0.00016712,2]
[324814853,1714341068567,-200.33,0.00016712,2]
[324814854,1714341068576,-612.97,0.00016712,2]
[324814855,1714341068585,-539.7,0.00016712,2]
[324814856,1714341068595,-1043.37,0.00016712,2]
[324814857,1714341068604,-666.72,0.00016712,2]
[324814858,1714341068614,-685.26,0.00016712,2]
[324814859,1714341068624,-1020.32,0.00016712,2]
[324814860,1714341068633,-502.9,0.00016712,2]
[324814861,1714341068643,-657.62,0.00016712,2]
[324814862,1714341068653,-529.3,0.00016712,2]
[324814863,1714341068662,-606.75,0.00016712,2]
[324814864,1714341068671,-564.21,0.00016712,2]
[324814865,1714341068682,-863.33,0.00016712,2]
[324814866,1714341068692,-1529.21,0.00016712,2]
[324814867,1714341068701,-518.89,0.00016712,2]
[324814868,1714341068710,-822.56,0.00016712,2]
[324814869,1714341068720,-4168.98,0.00016712,2]
[324814870,1714341068730,-671.78,0.00016712,2]
[324814871,1714341068740,-1616.93,0.00016712,2]
[324814872,1714341068749,-721.38,0.00016712,2]
[324814873,1714341068760,-1027.03,0.00016712,2]
[324814874,1714341068770,-7823.72,0.00016712,2]
[324814875,1714341068779,-547.0,0.00016712,2]
[324814876,1714341068789,-2815.22,0.00016712,2]
[324814877,1714341068802,-1064.93,0.00016712,2]
[324814878,1714341068813,-765.24,0.00016712,2]
[324814879,1714341068828,-904.55,0.00016712,2]
[324814880,1714341068838,-596.75,0.00016712,2]
[324814881,1714341068849,-1292.15,0.00016712,2]
[324814882,1714341068861,-500.0,0.00016712,2]
[324814883,1714341068872,-17248.02,0.00016712,2]
[324814884,1714341068882,-1054.15,0.00016712,2]
[324814885,1714341068893,-160.8,0.00016712,2]
[324814886,1714341068902,-153.69268102,0.00016715,2]
[324814887,1714341068911,-152.53756934,0.00016756,2]
[324814888,1714341068921,-158.08680255,0.00016813,2]
[324814889,1714341068940,-155.61572325,0.00016848,2]
[324814890,1714341068949,-162.73155253,0.00016848,2]
[324814891,1714341068967,-151.1772639,0.00016862,2]
[324814892,1714341068976,-493.39263262,0.0001691,2]
[324814893,1714341068985,-2227.33,0.00016922,2]
[324814894,1714341069004,-13258.77,0.00016922,2]
[324814895,1714341069017,-157.042906,0.00016948,4]
[324814896,1714341069027,-150.0,0.00016958,2]
[324814897,1714341069037,-173.847,0.00016984,2]
[324814898,1714341069047,-388.173,0.00016984,2]
[324814899,1714341069057,-2064.16,0.00016985,2]
[324814900,1714341069068,-843.47,0.00016985,2]
[324814901,1714341069082,-1166.48,0.00016985,2]
[324814902,1714341069095,-592.13,0.00016985,2]
[324814903,1714341069111,-2311.26,0.00016985,2]
[324814904,1714341069124,-2248.85,0.00016985,2]
[324814905,1714341069136,-743.26,0.00016986,2]
[324814906,1714341069149,-1035.98,0.00016986,2]
[324814907,1714341069160,-583.16,0.00016986,2]
[324814908,1714341069169,-658.41,0.00016986,2]
[324814909,1714341069192,-1038.44,0.00016986,2]
[324814910,1714341069203,-751.72,0.00016986,2]
[324814911,1714341069216,-510.93,0.00016986,2]
[324814912,1714341069227,-612.97,0.00016986,2]
[324814913,1714341069236,-539.7,0.00016986,2]
[324814914,1714341069247,-1043.37,0.00016986,2]
[324814915,1714341069258,-666.72,0.00016986,2]
[324814916,1714341069267,-685.26,0.00016986,2]
[324814917,1714341069279,-1020.32,0.00016986,2]
[324814918,1714341069289,-502.9,0.00016986,2]
[324814919,1714341069299,-657.62,0.00016986,2]
[324814920,1714341069309,-529.3,0.00016986,2]
[324814921,1714341069319,-606.75,0.00016986,2]
[324814922,1714341069329,-863.33,0.00016986,2]
[324814923,1714341069339,-1529.21,0.00016986,2]
[324814924,1714341069350,-518.89,0.00016986,2]
[324814925,1714341069359,-822.56,0.00016986,2]
[324814926,1714341069373,-4168.98,0.00016986,2]
[324814927,1714341069391,-671.78,0.00016986,2]
[324814928,1714341069403,-1616.93,0.00016986,2]
[324814929,1714341069413,-721.38,0.00016986,2]
[324814930,1714341069423,-1027.03,0.00016986,2]
[324814931,1714341069432,-7823.72,0.00016986,2]
[324814932,1714341069441,-547.0,0.00016986,2]
[324814933,1714341069451,-2815.22,0.00016986,2]
[324814934,1714341069474,-1064.93,0.00016986,2]
[324814935,1714341069491,-765.24,0.00016986,2]
[324814936,1714341069500,-904.55,0.00016986,2]
[324814937,1714341069511,-596.75,0.00016986,2]
[324814938,1714341069522,-1292.15,0.00016986,2]
[324814939,1714341069532,-17248.02,0.00016986,2]
[324814940,1714341069542,-1054.15,0.00016986,2]
[324814941,1714341069552,-157.042906,0.00016998,2]
[324814942,1714341069561,-150.0,0.00017012,2]
[324814943,1714341069572,-493.39263262,0.00017053,2]
[324814944,1714341069581,-150.0,0.00017113,2]
[324814945,1714341069591,-192.27623579,0.00017117,2]
[324814946,1714341069600,-150.0,0.0001713,2]
[324814947,1714341069610,-167.0,0.00017137,2]
[324814948,1714341069619,-152.83625944,0.0001715,2]
[324814949,1714341069628,-493.39263262,0.0001722,2]
[324814950,1714341069638,-155.18853133,0.00017254,2]
[324814951,1714341069648,-303.57,0.00017254,2]
[324814952,1714341069657,-2064.16,0.00017259,2]
[324814953,1714341069667,-843.47,0.00017259,2]
[324814954,1714341069676,-1166.48,0.00017259,2]
[324814955,1714341069686,-592.13,0.00017259,2]
[324814956,1714341069696,-2311.26,0.00017259,2]
[324814957,1714341069706,-151.1772639,0.00017259,2]
[324814958,1714341069716,-2248.85,0.00017259,2]
[324814959,1714341069727,-743.34857206,0.0001726,2]
[324814960,1714341069736,-1036.11,0.0001726,2]
[324814961,1714341069746,-583.25140388,0.0001726,2]
[324814962,1714341069756,-658.58602589,0.0001726,2]
[324814963,1714341069766,-1038.66,0.0001726,2]
[324814964,1714341069776,-751.91659988,0.0001726,2]
[324814965,1714341069786,-511.16,0.0001726,2]
[324814966,1714341069796,-613.09911209,0.0001726,2]
[324814967,1714341069805,-539.73461256,0.0001726,2]
[324814968,1714341069814,-1043.38,0.0001726,2]
[324814969,1714341069823,-666.78,0.0001726,2]
[324814970,1714341069832,-685.26,0.0001726,2]
[324814971,1714341069842,-1020.49,0.0001726,2]
[324814972,1714341069851,-503.05584585,0.0001726,2]
[324814973,1714341069860,-657.85,0.0001726,2]